[Event "FIDE WCCC Open-10 2024"]
[Site "Montesilvano"]
[Date "2024.11.18"]
[Round "4.4"]
[White "Advik Amit Agrawal"]
[Black "Zhou, Guoyu"]
[Result "1-0"]
[ECO "C47"]
[WhiteElo "1982"]
[BlackElo "1809"]
[Annotator "RC"]
[PlyCount "111"]
[EventDate "2024.11.18"]
[EventType "swiss"]
[EventCountry "ITA"]
[SourceTitle "playchess.com"]
[Source "ChessBase"]
[SourceQuality "1"]
[TimeControl "5400+30"]

1. e4 {[%emt 0:00:35]} e5 {[%emt 0:00:44]} 2. Nf3 {[%emt 0:00:18]} Nc6 {[%emt 0:00:24]} 3. Nc3 {[%emt 0:00:17]} Nf6 {[%emt 0:00:31]} 4. d4 {[%emt 0:00:21]} exd4 {[%emt 0:00:53]} 5. Nxd4 {[%emt 0:00:15]} Bb4 {[%emt 0:01:03]} 6. Nxc6 {[%emt 0:00:13]} bxc6 {[%emt 0:00:09]} 7. Bd3 {[%emt 0:00:26]} d5 {[%emt 0:00:21]} 8. exd5 {[%emt 0:00:31]} cxd5 {[%emt 0:00:16]} 9. O-O {[%emt 0:00:36]} O-O {[%emt 0:00:23]} 10. Bg5 {[%emt 0:00:13]} c6 {[%emt 0:00:58]} 11. Qf3 {[%emt 0:00:16]} h6 {[%emt 0:00:45]} 12. Bxf6 {[%emt 0:01:23]} Qxf6 {[%emt 0:00:33]} 13. Qxf6 {[%emt 0:00:09]} gxf6 {[%emt 0:00:07]} 14. Ne2 {[%emt 0:00:28]} Bc5 {[%emt 0:13:48]} 15. Ng3 {[%emt 0:02:32]} Rb8 {[%emt 0:01:31]} 16. b3 {[%emt 0:00:12]} Bd4 {[%emt 0:03:45]} 17. Rad1 {[%emt 0:00:56]} Bc3 {[%emt 0:01:40]} 18. Ne2 {[%emt 0:02:25]} Ba5 {[%emt 0:07:08]} 19. Nd4 {[%emt 0:03:17]} Bd7 {[%emt 0:00:50]} 20. Bf5 {[%emt 0:00:15]} Bxf5 {[%emt 0:00:49]} 21. Nxf5 {[%emt 0:00:10]} Kh7 {[%emt 0:00:40]} 22. Rd3 {[%emt 0:01:08]} Rbe8 {[%emt 0:11:09]} 23. Rh3 {[%emt 0:01:39]} Kg6 {[%emt 0:01:32]} 24. g4 {[%emt 0:05:37]} Rh8 {[%emt 0:01:10]} 25. Ng3 {[%emt 0:00:19]} Bc7 {[%emt 0:12:28]} 26. f4 {[%emt 0:04:18]} Re3 {[%emt 0:03:07]} 27. Kg2 {[%emt 0:00:51]} Rhe8 {[%emt 0:12:24]} 28. Rf2 {[%emt 0:13:16]} c5 {[%emt 0:10:11]} 29. Rh5 {[%emt 0:03:08]} Kh7 {[%emt 0:09:56]} 30. Rxd5 {[%emt 0:00:26]} c4 {[%emt 0:03:54]} 31. Nh5 {[%emt 0:02:34]} Bd8 {[%emt 0:01:12]} 32. Rd7 {[%emt 0:01:22]} Kg8 {[%emt 0:00:45]} 33. bxc4 {[%emt 0:06:17]} R3e6 {[%emt 0:00:08]} 34. c5 {[%emt 0:00:33]} Rc6 {[%emt 0:00:05]} 35. Rxa7 {[%emt 0:00:23]} Rxc5 {[%emt 0:00:07]} 36. Ra8 {[%emt 0:00:45]} Kf8 {[%emt 0:00:18]} 37. Rd2 {[%emt 0:00:53]} Be7 {[%emt 0:00:17]} 38. Rxe8+ {[%emt 0:00:08]} Kxe8 {[%emt 0:00:04]} 39. Ng7+ {[%emt 0:01:21]} Kf8 {[%emt 0:00:19]} 40. Nf5 {[%emt 0:00:10]} h5 {[%emt 0:00:05]} 41. Nxe7 {[%emt 0:01:02]} Kxe7 {[%emt 0:00:07]} 42. h3 {[%emt 0:00:19]} hxg4 {[%emt 0:00:24]} 43. hxg4 {[%emt 0:00:08]} Rc4 {[%emt 0:00:02]} 44. Kf3 {[%emt 0:01:29]} Rc3+ {[%emt 0:00:09]} 45. Ke4 {[%emt 0:00:11]} Rc4+ {[%emt 0:00:26]} 46. Ke3 {[%emt 0:00:08]} Rc3+ {[%emt 0:00:09]} 47. Kd4 {[%emt 0:00:35]} Rg3 {[%emt 0:00:06]} 48. c4 {[%emt 0:00:22]} Kd6 {[%emt 0:00:34]} 49. c5+ {[%emt 0:49:50]} Kc6 {[%emt 0:00:12]} 50. Kc4 {[%emt 0:00:00]} Rxg4 {[%emt 0:00:30]} 51. Rd6+ {[%emt 0:00:00]} Kc7 {[%emt 0:00:13]} 52. Rxf6 {[%emt 0:00:00]} Rg2 {[%emt 0:00:21]} 53. Rxf7+ {[%emt 0:00:00]} Kc6 {[%emt 0:00:04]} 54. Rf6+ {[%emt 0:00:00]} Kc7 {[%emt 0:00:07]} 55. a4 {[%emt 0:00:00]} Ra2 {[%emt 0:00:18]} 56. Kb3 {[%emt 0:00:00]} 1-0

[Event "FIDE WCCC Open-10 2024"]
[Site "Montesilvano"]
[Date "2024.11.18"]
[Round "4.4"]
[White "Novac, Daniil"]
[Black "Kovacs, Balazs"]
[Result "0-1"]
[ECO "D94"]
[WhiteElo "1594"]
[BlackElo "1871"]
[Annotator "NA RC"]
[PlyCount "52"]
[EventDate "2024.11.18"]
[EventType "swiss"]
[EventCountry "ITA"]
[SourceTitle "playchess.com"]
[Source "ChessBase"]
[SourceQuality "1"]
[TimeControl "5400+30"]

1. Nf3 {[%emt 0:00:04]} Nf6 {[%emt 0:00:04]} 2. d4 {[%emt 0:00:07]} g6 {[%emt 0:00:04]} 3. c4 {[%emt 0:00:06]} Bg7 {[%emt 0:00:06]} 4. Nc3 {[%emt 0:00:21]} d5 {[%emt 0:00:05]} 5. e3 {[%emt 0:01:46]} O-O {[%emt 1:32:41]} 6. cxd5 {[%emt 0:02:08]} Nxd5 {[%emt 0:00:00]} 7. Bc4 {[%emt 0:00:38]} Nxc3 {[%emt 0:00:00]} 8. bxc3 {[%emt 0:00:07]} c5 {[%emt 0:00:00]} 9. O-O {[%emt 0:00:53]} Qc7 {[%emt 0:00:00]} 10. Qe2 {[%emt 0:01:26]} Bg4 {[%emt 0:00:00]} 11. Bb3 {[%emt 0:03:01]} cxd4 {[%emt 0:00:00]} 12. cxd4 {[%emt 0:01:30]} e5 {[%emt 0:00:00]} 13. dxe5 {[%emt 0:11:45]} Bxe5 {[%emt 0:00:00]} 14. Ba3 {[%emt 0:01:23]} Bxh2+ {[%emt 0:00:00]} 15. Kh1 {[%emt 0:00:44]} Bd6 {[%emt 0:00:00]} 16. Bxd6 {[%emt 0:08:39]} Qxd6 {[%emt 0:00:00]} 17. Rfd1 {[%emt 0:00:59]} Qf6 {[%emt 0:00:00]} 18. Rac1 {[%emt 0:02:04]} Nc6 {[%emt 0:00:00]} 19. Bd5 {[%emt 0:03:08]} Ne5 {[%emt 0:00:00]} 20. Qb2 {[%emt 0:07:40]} Bxf3 {[%emt 0:00:00]} 21. Bxf3 {[%emt 0:00:30]} Qh4+ {[%emt 0:00:00]} 22. Kg1 {[%emt 0:01:58]} Nxf3+ {[%emt 0:00:00]} 23. gxf3 {[%emt 0:00:07]} b6 {[%emt 0:00:00]} 24. Rd4 {[%emt 0:02:44]} Qf6 {[%emt 0:00:00]} 25. Rcd1 {[%emt 0:02:42]} Qxf3 {[%emt 0:00:00]} 26. Rf4 {[%emt 0:00:26]} Qxd1+ {[%emt 0:00:00]} 0-1

[Event "FIDE WCCC Open-10 2024"]
[Site "Montesilvano"]
[Date "2024.11.18"]
[Round "4.5"]
[White "Nguyen Truong An Khang"]
[Black "Anand, Tsogtbileg"]
[Result "0-1"]
[ECO "D41"]
[WhiteElo "1836"]
[BlackElo "1974"]
[Annotator "RC"]
[PlyCount "72"]
[EventDate "2024.11.18"]
[EventType "swiss"]
[EventCountry "ITA"]
[SourceTitle "playchess.com"]
[Source "ChessBase"]
[SourceQuality "1"]
[TimeControl "5400+30"]

1. d4 {[%emt 0:00:01]} Nf6 {[%emt 0:00:21]} 2. c4 {[%emt 0:00:03]} e6 {[%emt 0:00:21]} 3. Nc3 {[%emt 0:00:06]} d5 {[%emt 0:00:37]} 4. cxd5 {[%emt 0:00:10]} Nxd5 {[%emt 0:00:39]} 5. e4 {[%emt 0:00:07]} Nxc3 {[%emt 0:00:31]} 6. bxc3 {[%emt 0:00:04]} c5 {[%emt 0:00:31]} 7. Nf3 {[%emt 0:00:08]} cxd4 {[%emt 0:02:14]} 8. cxd4 {[%emt 0:00:08]} Bb4+ {[%emt 0:00:16]} 9. Bd2 {[%emt 0:00:05]} Bxd2+ {[%emt 0:01:50]} 10. Qxd2 {[%emt 0:00:02]} O-O {[%emt 0:01:51]} 11. Bc4 {[%emt 0:00:05]} b6 {[%emt 0:01:05]} 12. O-O {[%emt 0:02:36]} Bb7 {[%emt 0:01:43]} 13. Rfe1 {[%emt 0:04:57]} Nc6 {[%emt 0:02:01]} 14. Rac1 {[%emt 0:04:14]} Rc8 {[%emt 0:04:39]} 15. Qe3 {[%emt 0:05:32]} Qe7 {[%emt 0:04:57]} 16. Red1 {[%emt 0:09:00]} Rfd8 {[%emt 0:03:05]} 17. h4 {[%emt 0:07:46]} Rc7 {[%emt 0:07:14]} 18. Bb3 {[%emt 0:17:46]} Na5 {[%emt 0:03:55]} 19. g3 {[%emt 0:06:03]} Nxb3 {[%emt 0:02:36]} 20. axb3 {[%emt 0:00:53]} Rdc8 {[%emt 0:00:34]} 21. Ne5 {[%emt 0:08:52]} f6 {[%emt 0:07:39]} 22. Nd3 {[%emt 0:04:45]} Rc3 {[%emt 0:02:26]} 23. Rxc3 {[%emt 0:09:26]} Rxc3 {[%emt 0:00:06]} 24. Qf4 {[%emt 0:00:04]} Qd8 {[%emt 0:02:39]} 25. Qg4 {[%emt 0:03:06]} f5 {[%emt 0:01:11]} 26. Qf4 {[%emt 0:04:46]} Bxe4 {[%emt 0:01:07]} 27. Ne5 {[%emt 0:00:29]} Bb7 {[%emt 0:02:00]} 28. d5 {[%emt 0:05:40]} Bxd5 {[%emt 0:01:15]} 29. Qb4 {[%emt 0:00:12]} Rc2 {[%emt 0:03:18]} 30. Nc4 {[%emt 0:02:15]} f4 {[%emt 0:01:33]} 31. Na3 {[%emt 0:00:06]} Ra2 {[%emt 0:00:10]} 32. Nb5 {[%emt 0:03:09]} fxg3 {[%emt 0:00:29]} 33. Nc3 {[%emt 0:00:09]} gxf2+ {[%emt 0:00:44]} 34. Kf1 {[%emt 0:00:02]} Bg2+ {[%emt 0:00:42]} 35. Kxg2 {[%emt 0:00:07]} f1=Q+ {[%emt 0:00:04]} 36. Kxf1 {[%emt 0:00:22]} Qf6+ {[%emt 0:42:07]} 0-1

[Event "FIDE WCCC Open-10 2024"]
[Site "Montesilvano"]
[Date "2024.11.18"]
[Round "4.5"]
[White "Pierloot, Siebe"]
[Black "Neuschild, Marius"]
[Result "0-1"]
[ECO "B87"]
[WhiteElo "1573"]
[BlackElo "1786"]
[Annotator "NA RC"]
[PlyCount "60"]
[EventDate "2024.11.18"]
[EventType "swiss"]
[EventCountry "ITA"]
[SourceTitle "playchess.com"]
[Source "ChessBase"]
[SourceQuality "1"]
[TimeControl "5400+30"]

1. e4 {[%emt 0:00:03]} c5 {[%emt 0:00:02]} 2. Nf3 {[%emt 0:00:07]} d6 {[%emt 0:00:12]} 3. d4 {[%emt 0:00:38]} cxd4 {[%emt 0:00:05]} 4. Nxd4 {[%emt 0:00:09]} Nf6 {[%emt 0:00:02]} 5. Nc3 {[%emt 0:00:16]} a6 {[%emt 0:00:02]} 6. Bc4 {[%emt 0:01:31]} e6 {[%emt 0:00:08]} 7. O-O {[%emt 0:03:03]} b5 {[%emt 0:00:12]} 8. Bb3 {[%emt 0:00:12]} Be7 {[%emt 0:00:06]} 9. Be3 {[%emt 0:02:00]} O-O {[%emt 0:00:15]} 10. a3 {[%emt 0:02:34]} Bb7 {[%emt 0:00:48]} 11. f3 {[%emt 0:00:48]} Nbd7 {[%emt 0:00:07]} 12. Qe2 {[%emt 0:02:57]} Nc5 {[%emt 0:01:00]} 13. Ba2 {[%emt 0:01:41]} Rc8 {[%emt 0:00:16]} 14. Nb3 {[%emt 0:02:55]} Ncd7 {[%emt 0:08:07]} 15. Nd4 {[%emt 0:02:11]} Qc7 {[%emt 0:00:48]} 16. Qf2 {[%emt 0:03:09]} Rfe8 {[%emt 0:03:28]} 17. Qg3 {[%emt 0:02:00]} Ne5 {[%emt 0:04:36]} 18. Nde2 {[%emt 0:03:42]} Nc4 {[%emt 0:04:39]} 19. Bxc4 {[%emt 0:00:47]} Qxc4 {[%emt 0:00:17]} 20. Bh6 {[%emt 0:04:09]} Bf8 {[%emt 0:03:04]} 21. Rad1 {[%emt 0:00:40]} a5 {[%emt 0:14:20]} 22. Rd4 {[%emt 0:07:58]} Qc5 {[%emt 0:04:53]} 23. b4 {[%emt 0:01:14]} axb4 {[%emt 0:04:29]} 24. axb4 {[%emt 0:00:11]} Qb6 {[%emt 0:01:26]} 25. Kh1 {[%emt 0:00:52]} Rxc3 {[%emt 0:11:57]} 26. Nxc3 {[%emt 0:01:32]} Qxd4 {[%emt 0:01:29]} 27. Nxb5 {[%emt 0:01:37]} Qc4 {[%emt 0:03:36]} 28. Rd1 {[%emt 0:00:12]} Qxb5 {[%emt 0:00:18]} 29. c3 {[%emt 0:00:13]} Rc8 {[%emt 0:03:20]} 30. h3 {[%emt 0:00:42]} Qe5 {[%emt 0:05:10]} 0-1

[Event "FIDE WCCC Open-10 2024"]
[Site "Montesilvano"]
[Date "2024.11.18"]
[Round "4.6"]
[White "Ramesan, Raunak Amit"]
[Black "Llari, Marc"]
[Result "0-1"]
[ECO "C56"]
[WhiteElo "1802"]
[BlackElo "2201"]
[Annotator "RC"]
[PlyCount "66"]
[EventDate "2024.11.18"]
[EventType "swiss"]
[EventCountry "ITA"]
[SourceTitle "playchess.com"]
[Source "ChessBase"]
[SourceQuality "1"]
[TimeControl "5400+30"]

1. e4 {[%emt 0:00:06]} e5 {[%emt 0:00:05]} 2. Nf3 {[%emt 0:00:06]} Nc6 {[%emt 0:00:04]} 3. Bc4 {[%emt 0:00:12]} d6 {[%emt 0:00:08]} 4. d4 {[%emt 0:00:29]} Nf6 {[%emt 0:00:06]} 5. dxe5 {[%emt 0:05:52]} dxe5 {[%emt 0:00:15]} 6. Qxd8+ {[%emt 0:00:09]} Nxd8 {[%emt 0:00:07]} 7. O-O {[%emt 0:05:41]} Bd6 {[%emt 0:01:48]} 8. Re1 {[%emt 0:06:00]} c6 {[%emt 0:04:08]} 9. a4 {[%emt 0:04:11]} Be6 {[%emt 0:08:13]} 10. Bxe6 {[%emt 0:01:30]} Nxe6 {[%emt 0:00:56]} 11. Nbd2 {[%emt 0:04:03]} Nd7 {[%emt 0:01:41]} 12. Nc4 {[%emt 0:03:22]} Bc7 {[%emt 0:00:21]} 13. Be3 {[%emt 0:05:13]} f6 {[%emt 0:02:25]} 14. a5 {[%emt 0:05:08]} Ke7 {[%emt 0:01:59]} 15. b4 {[%emt 0:02:58]} b5 {[%emt 0:06:26]} 16. Ncd2 {[%emt 0:00:58]} c5 {[%emt 0:09:21]} 17. c3 {[%emt 0:06:38]} a6 {[%emt 0:02:40]} 18. Rec1 {[%emt 0:07:32]} Rhc8 {[%emt 0:05:17]} 19. Ne1 {[%emt 0:03:51]} Bd6 {[%emt 0:07:52]} 20. Nd3 {[%emt 0:02:37]} Nf4 {[%emt 0:02:43]} 21. Bxf4 {[%emt 0:02:06]} exf4 {[%emt 0:00:09]} 22. bxc5 {[%emt 0:02:58]} Nxc5 {[%emt 0:02:00]} 23. Nb4 {[%emt 0:01:45]} Kf7 {[%emt 0:08:47]} 24. Nd5 {[%emt 0:06:57]} Rab8 {[%emt 0:02:06]} 25. f3 {[%emt 0:06:53]} Be5 {[%emt 0:01:38]} 26. Rab1 {[%emt 0:00:56]} Na4 {[%emt 0:03:27]} 27. c4 {[%emt 0:01:53]} Bb2 {[%emt 0:01:49]} 28. Rc2 {[%emt 0:01:04]} bxc4 {[%emt 0:01:54]} 29. Nb6 {[%emt 0:02:43]} Bd4+ {[%emt 0:00:45]} 30. Kf1 {[%emt 0:00:06]} Nxb6 {[%emt 0:00:11]} 31. axb6 {[%emt 0:00:23]} c3 {[%emt 0:01:07]} 32. b7 {[%emt 0:00:41]} Rc5 {[%emt 0:01:02]} 33. Nb3 {[%emt 0:00:55]} Rxb7 {[%emt 0:00:46]} 0-1

[Event "FIDE WCCC Open-10 2024"]
[Site "Montesilvano"]
[Date "2024.11.18"]
[Round "4.6"]
[White "Youn, Laeho"]
[Black "Prokhorov, Makar"]
[Result "1-0"]
[ECO "B20"]
[WhiteElo "1520"]
[BlackElo "1771"]
[Annotator "NA RC"]
[PlyCount "62"]
[EventDate "2024.11.18"]
[EventType "swiss"]
[EventCountry "ITA"]
[SourceTitle "playchess.com"]
[Source "ChessBase"]
[SourceQuality "1"]
[TimeControl "5400+30"]

1. e4 {[%emt 0:00:08]} c5 {[%emt 0:00:01]} 2. a3 {[%emt 0:00:12]} g6 {[%emt 0:00:08]} 3. b4 {[%emt 0:00:09]} Bg7 {[%emt 0:00:09]} 4. Nc3 {[%emt 0:00:06]} d6 {[%emt 0:00:25]} 5. Bb2 {[%emt 0:00:41]} Nf6 {[%emt 0:00:26]} 6. Rb1 {[%emt 0:01:11]} Nc6 {[%emt 0:01:21]} 7. Bb5 {[%emt 0:06:48]} O-O {[%emt 0:01:30]} 8. Bxc6 {[%emt 0:01:26]} bxc6 {[%emt 0:00:28]} 9. bxc5 {[%emt 0:00:37]} dxc5 {[%emt 0:00:59]} 10. e5 {[%emt 0:01:24]} Ng4 {[%emt 0:00:50]} 11. f4 {[%emt 0:00:31]} f6 {[%emt 0:05:47]} 12. h3 {[%emt 0:01:10]} Nh6 {[%emt 0:06:51]} 13. Nf3 {[%emt 0:01:38]} fxe5 {[%emt 0:01:07]} 14. fxe5 {[%emt 0:01:14]} Nf5 {[%emt 0:02:52]} 15. Ne4 {[%emt 0:01:14]} Ba6 {[%emt 0:01:53]} 16. Nxc5 {[%emt 0:01:56]} Ng3 {[%emt 0:03:11]} 17. Rg1 {[%emt 0:00:54]} Be2 {[%emt 0:04:42]} 18. Qc1 {[%emt 0:00:07]} Rb8 {[%emt 0:03:36]} 19. Nd4 {[%emt 0:09:55]} Qd5 {[%emt 0:03:21]} 20. Nxe2 {[%emt 0:01:03]} Qxg2 {[%emt 0:00:27]} 21. Nxg3 {[%emt 0:06:58]} Qxg1+ {[%emt 0:03:03]} 22. Ke2 {[%emt 0:00:08]} Rf2+ {[%emt 0:00:31]} 23. Kd3 {[%emt 0:00:48]} Qxg3+ {[%emt 0:00:44]} 24. Kc4 {[%emt 0:00:14]} Qf4+ {[%emt 0:05:31]} 25. Bd4 {[%emt 0:01:32]} Rb7 {[%emt 0:04:39]} 26. Rxb7 {[%emt 0:00:08]} Bxe5 {[%emt 0:00:30]} 27. Ne6 Qe4 {[%emt 0:00:30]} 28. Qb1 {[%emt 0:01:00]} Qxc2+ {[%emt 0:00:30]} 29. Bc3 {[%emt 0:00:30]} Qa4+ {[%emt 0:00:30]} 30. Bb4 {[%emt 0:00:30]} Qc2+ {[%emt 0:04:58]} 31. Bc3 {[%emt 0:12:10]} Qa4+ {[%emt 0:02:05]} 1-0

[Event "FIDE WCCC Open-10 2024"]
[Site "Montesilvano"]
[Date "2024.11.18"]
[Round "4.7"]
[White "Kolodziejczyk, Boris"]
[Black "Nguyen, Huynh Minh Huy"]
[Result "1-0"]
[ECO "B40"]
[WhiteElo "2115"]
[BlackElo "2423"]
[Annotator "RC"]
[PlyCount "89"]
[EventDate "2024.11.18"]
[EventType "swiss"]
[EventCountry "ITA"]
[SourceTitle "playchess.com"]
[Source "ChessBase"]
[SourceQuality "1"]
[TimeControl "5400+30"]

1. e4 {[%emt 0:00:04]} c5 {[%emt 0:00:39]} 2. Nf3 {[%emt 0:00:13]} Nf6 {[%emt 0:00:13]} 3. d3 {[%emt 1:31:43]} d5 {[%emt 0:09:44]} 4. e5 {[%emt 0:00:00]} Nfd7 {[%emt 0:00:09]} 5. Qe2 {[%emt 0:00:00]} e6 {[%emt 0:01:19]} 6. g3 {[%emt 0:00:00]} Nc6 {[%emt 0:02:07]} 7. Bg2 {[%emt 0:00:00]} g6 {[%emt 0:14:49]} 8. O-O {[%emt 0:00:00]} Bg7 {[%emt 0:03:16]} 9. Bf4 {[%emt 0:00:00]} O-O {[%emt 0:02:34]} 10. c4 {[%emt 0:00:00]} Re8 {[%emt 0:16:19]} 11. Nc3 {[%emt 0:00:00]} a6 {[%emt 0:05:47]} 12. Rfe1 {[%emt 0:00:00]} Nd4 {[%emt 0:11:59]} 13. Qd2 {[%emt 0:00:00]} dxc4 {[%emt 0:02:55]} 14. Nxd4 {[%emt 0:00:00]} cxd4 {[%emt 0:00:11]} 15. Nb1 {[%emt 0:00:00]} cxd3 {[%emt 0:11:31]} 16. Na3 {[%emt 0:00:00]} f6 {[%emt 0:05:49]} 17. exf6 {[%emt 0:00:00]} Bxf6 {[%emt 0:00:23]} 18. Qxd3 {[%emt 0:00:00]} e5 {[%emt 0:01:20]} 19. Bd2 {[%emt 0:00:00]} Nf8 {[%emt 0:01:15]} 20. Qb3+ {[%emt 0:00:00]} Kg7 {[%emt 0:00:58]} 21. Nc4 {[%emt 0:00:00]} Rb8 {[%emt 0:00:57]} 22. Ba5 {[%emt 0:00:00]} Qd7 {[%emt 0:01:05]} 23. Rac1 {[%emt 0:00:00]} b5 {[%emt 0:03:11]} 24. Nb6 {[%emt 0:00:00]} Qf7 {[%emt 0:00:19]} 25. Nd5 {[%emt 0:00:00]} Bd8 {[%emt 0:01:28]} 26. Bb4 {[%emt 0:00:00]} Re6 {[%emt 0:01:44]} 27. Bh3 {[%emt 0:00:00]} a5 {[%emt 0:01:06]} 28. Bxf8+ {[%emt 0:00:00]} Kxf8 {[%emt 0:00:04]} 29. Qc2 {[%emt 0:03:27]} Bd7 {[%emt 0:01:02]} 30. Bxe6 {[%emt 0:00:33]} Qxe6 {[%emt 0:00:06]} 31. Nf4 {[%emt 0:00:41]} Qd6 {[%emt 0:00:10]} 32. Nd3 {[%emt 0:01:11]} Rc8 {[%emt 0:01:09]} 33. Qe2 {[%emt 0:00:54]} Rxc1 {[%emt 0:00:05]} 34. Rxc1 {[%emt 0:00:07]} Bf6 {[%emt 0:00:39]} 35. Re1 {[%emt 0:00:36]} Bc6 {[%emt 0:01:03]} 36. Nxe5 {[%emt 0:00:30]} Bxe5 {[%emt 0:00:32]} 37. Qxe5 {[%emt 0:00:03]} Qxe5 {[%emt 0:00:06]} 38. Rxe5 {[%emt 0:00:10]} Kf7 {[%emt 0:00:17]} 39. Rc5 {[%emt 0:00:34]} Bf3 {[%emt 0:00:07]} 40. Kf1 {[%emt 0:00:10]} b4 {[%emt 0:01:21]} 41. Rxa5 {[%emt 0:00:09]} Ke6 {[%emt 0:00:08]} 42. Ke1 {[%emt 0:00:06]} Bd5 {[%emt 0:00:26]} 43. a3 {[%emt 0:00:10]} bxa3 {[%emt 0:00:05]} 44. bxa3 {[%emt 0:00:00]} Ke5 {[%emt 0:00:10]} 45. Kd2 {[%emt 0:00:08]} 1-0

[Event "FIDE WCCC Open-10 2024"]
[Site "Montesilvano"]
[Date "2024.11.18"]
[Round "4.7"]
[White "Kaloh, Edvard"]
[Black "Sander, Tino"]
[Result "1-0"]
[ECO "C54"]
[WhiteElo "1506"]
[BlackElo "1736"]
[Annotator "NA RC"]
[PlyCount "115"]
[EventDate "2024.11.18"]
[EventType "swiss"]
[EventCountry "ITA"]
[SourceTitle "playchess.com"]
[Source "ChessBase"]
[SourceQuality "1"]
[TimeControl "5400+30"]

1. e4 {[%emt 0:04:18]} e5 {[%emt 0:00:32]} 2. Nf3 {[%emt 0:00:06]} Nc6 {[%emt 0:00:11]} 3. Bc4 {[%emt 0:00:07]} Bc5 {[%emt 0:00:05]} 4. c3 {[%emt 0:00:05]} Nf6 {[%emt 0:00:07]} 5. d3 {[%emt 0:00:06]} a6 {[%emt 0:00:09]} 6. Bb3 {[%emt 0:00:06]} O-O {[%emt 0:00:11]} 7. O-O {[%emt 0:00:04]} d5 {[%emt 0:00:28]} 8. exd5 {[%emt 0:01:15]} Nxd5 {[%emt 0:00:25]} 9. Re1 {[%emt 0:00:33]} Re8 {[%emt 0:01:52]} 10. d4 {[%emt 0:00:58]} Ba7 {[%emt 0:07:38]} 11. Nxe5 {[%emt 0:02:15]} Nxe5 {[%emt 0:03:22]} 12. Rxe5 {[%emt 0:01:01]} Rxe5 {[%emt 0:01:04]} 13. dxe5 {[%emt 0:01:47]} Be6 {[%emt 0:00:34]} 14. c4 {[%emt 0:00:37]} Nb6 {[%emt 0:01:25]} 15. Qxd8+ {[%emt 0:01:44]} Rxd8 {[%emt 0:00:03]} 16. Bg5 {[%emt 0:01:06]} Rd4 {[%emt 0:03:19]} 17. Nd2 {[%emt 0:02:44]} Nxc4 {[%emt 0:03:15]} 18. Nxc4 {[%emt 0:01:04]} Bxc4 {[%emt 0:00:20]} 19. Be3 {[%emt 0:00:26]} Re4 {[%emt 0:00:57]} 20. Bxa7 {[%emt 0:01:25]} Bxb3 {[%emt 0:01:56]} 21. axb3 {[%emt 0:00:14]} Rxe5 {[%emt 1:13:07]} 22. Rd1 {[%emt 0:00:16]} h6 {[%emt 0:00:00]} 23. Bb8 {[%emt 0:00:32]} Rc5 {[%emt 0:00:00]} 24. Kf1 {[%emt 0:00:26]} Rc2 {[%emt 0:00:00]} 25. Rd8+ {[%emt 0:00:45]} Kh7 {[%emt 0:00:00]} 26. Rd7 {[%emt 0:00:05]} Rxb2 {[%emt 0:00:00]} 27. Bxc7 {[%emt 0:00:34]} Rxb3 {[%emt 0:00:00]} 28. Rxf7 {[%emt 0:00:20]} b5 {[%emt 0:00:00]} 29. Be5 {[%emt 0:00:43]} Kg6 {[%emt 0:00:00]} 30. Rxg7+ {[%emt 0:01:02]} Kf5 {[%emt 0:00:00]} 31. f4 {[%emt 0:02:14]} b4 {[%emt 0:00:00]} 32. g4+ {[%emt 0:00:42]} Ke4 {[%emt 0:00:00]} 33. Kf2 {[%emt 0:00:27]} a5 {[%emt 0:00:00]} 34. Rd7 {[%emt 0:00:43]} Rf3+ {[%emt 0:00:00]} 35. Ke2 {[%emt 0:00:50]} Re3+ {[%emt 0:00:00]} 36. Kd2 {[%emt 0:01:16]} b3 {[%emt 0:00:00]} 37. Rd4+ {[%emt 0:00:40]} Kf3 {[%emt 0:00:00]} 38. Rd3 {[%emt 0:00:13]} Rxd3+ {[%emt 0:00:00]} 39. Kxd3 {[%emt 0:00:12]} Kxg4 {[%emt 0:00:00]} 40. Kc3 {[%emt 0:01:26]} a4 {[%emt 0:00:00]} 41. Kb4 {[%emt 0:00:41]} h5 {[%emt 0:00:00]} 42. Kxa4 {[%emt 0:00:13]} b2 {[%emt 0:00:00]} 43. Bxb2 {[%emt 0:00:09]} Kxf4 {[%emt 0:00:00]} 44. Kb4 {[%emt 0:00:24]} h4 {[%emt 0:00:00]} 45. Kc4 {[%emt 0:00:19]} Ke4 {[%emt 0:00:00]} 46. Bd4 {[%emt 0:02:23]} Kf3 {[%emt 0:00:00]} 47. Kd3 {[%emt 0:01:34]} h3 {[%emt 0:00:00]} 48. Be5 {[%emt 0:00:10]} Kg2 {[%emt 0:00:00]} 49. Ke3 {[%emt 0:00:13]} Kh1 {[%emt 0:00:00]} 50. Kf3 {[%emt 0:00:13]} Kg1 {[%emt 0:00:00]} 51. Kg3 {[%emt 0:00:12]} Kf1 {[%emt 0:00:00]} 52. Kxh3 {[%emt 0:00:10]} Kf2 {[%emt 0:00:00]} 53. Kg4 {[%emt 0:00:07]} Ke3 {[%emt 0:00:00]} 54. h4 {[%emt 0:00:12]} Ke4 {[%emt 0:00:00]} 55. h5 {[%emt 0:00:18]} Kxe5 {[%emt 0:00:00]} 56. Kg5 {[%emt 0:00:05]} Ke6 {[%emt 0:00:00]} 57. Kg6 {[%emt 0:00:08]} Ke7 {[%emt 0:00:00]} 58. Kg7 {[%emt 0:00:07]} 1-0

[Event "FIDE WCCC Open-10 2024"]
[Site "Montesilvano"]
[Date "2024.11.18"]
[Round "4.8"]
[White "Nguyen Quang Anh"]
[Black "Deepak Ambattu, Rithvik"]
[Result "1-0"]
[ECO "D87"]
[WhiteElo "1889"]
[BlackElo "2063"]
[Annotator "RC"]
[PlyCount "65"]
[EventDate "2024.11.18"]
[EventType "swiss"]
[EventCountry "ITA"]
[SourceTitle "playchess.com"]
[Source "ChessBase"]
[SourceQuality "1"]
[TimeControl "5400+30"]

1. d4 {[%emt 0:00:05]} Nf6 {[%emt 0:00:04]} 2. c4 {[%emt 0:00:16]} g6 {[%emt 0:00:04]} 3. Nc3 {[%emt 0:00:26]} d5 {[%emt 0:00:04]} 4. cxd5 {[%emt 0:00:30]} Nxd5 {[%emt 0:00:08]} 5. e4 {[%emt 0:00:19]} Nxc3 {[%emt 0:00:07]} 6. bxc3 {[%emt 0:00:22]} Bg7 {[%emt 0:00:06]} 7. Bc4 {[%emt 0:00:46]} c5 {[%emt 0:00:26]} 8. Ne2 {[%emt 0:00:27]} Nc6 {[%emt 0:00:53]} 9. Be3 {[%emt 0:01:18]} O-O {[%emt 0:00:25]} 10. O-O {[%emt 0:01:13]} b6 {[%emt 0:02:10]} 11. Rc1 {[%emt 0:02:04]} Bb7 {[%emt 0:02:14]} 12. h4 {[%emt 0:07:34]} e5 {[%emt 0:10:38]} 13. dxc5 {[%emt 0:04:09]} Qxh4 {[%emt 0:05:02]} 14. Bd5 {[%emt 0:04:26]} bxc5 {[%emt 0:27:17]} 15. Rb1 {[%emt 0:05:15]} Qe7 {[%emt 0:02:42]} 16. Rb5 {[%emt 0:00:45]} Qc7 {[%emt 0:07:21]} 17. Bxc5 {[%emt 0:07:42]} Rfc8 {[%emt 0:02:57]} 18. f4 {[%emt 0:19:25]} Nd8 {[%emt 0:14:58]} 19. Bb3 {[%emt 0:07:40]} Qc6 {[%emt 0:03:15]} 20. a4 {[%emt 0:02:52]} Qxe4 {[%emt 0:01:26]} 21. Rf2 {[%emt 0:00:47]} Ne6 {[%emt 0:02:09]} 22. Bd6 {[%emt 0:05:07]} exf4 {[%emt 0:05:05]} 23. Qf1 {[%emt 0:08:06]} g5 {[%emt 0:07:15]} 24. Bxe6 {[%emt 0:01:04]} fxe6 {[%emt 0:01:19]} 25. Rxg5 {[%emt 0:00:12]} h6 {[%emt 0:00:36]} 26. Rg4 {[%emt 0:00:50]} e5 {[%emt 0:00:20]} 27. Rf3 {[%emt 0:03:58]} Qf5 {[%emt 0:01:22]} 28. Rfg3 {[%emt 0:00:24]} Kh8 {[%emt 0:01:19]} 29. Rxg7 {[%emt 0:00:06]} Qe4 {[%emt 0:00:43]} 30. Re7 {[%emt 0:01:35]} Rf8 {[%emt 0:01:00]} 31. Bxe5+ {[%emt 0:00:51]} Qxe5 {[%emt 0:00:06]} 32. Rxe5 {[%emt 0:00:10]} fxg3 {[%emt 0:00:02]} 33. Rf5 {[%emt 0:00:23]} 1-0